bitfinex/quotes_BTCUSD_20260127
["timestamp","ask_amount","ask_price","bid_price","bid_amount"]
[1769504379457,0.3256883,88231.0,88215.0,0.09127548]
[1769504379711,0.3256883,88231.0,88219.0,0.01133542]
[1769504380110,0.3256883,88231.0,88220.0,0.01133529]
[1769504381430,0.3256883,88231.0,88218.0,0.01133555]
[1769504381647,0.3256883,88231.0,88219.0,0.01133542]
[1769504381858,0.3256883,88231.0,88217.0,0.01133568]
[1769504382041,0.3256883,88231.0,88218.0,0.01133555]
[1769504384455,0.3256883,88231.0,88219.0,0.01133542]
[1769504384665,0.37907789,88230.0,88213.0,0.01133619]
[1769504384870,0.02359654,88228.0,88214.0,0.01133606]
[1769504385072,0.34010071,88227.0,88214.0,0.01133606]
[1769504385833,0.34010071,88227.0,88213.0,0.01133619]
[1769504386063,0.34010071,88227.0,88214.0,0.01133606]
[1769504387184,0.02359654,88226.0,88215.0,0.01133594]
[1769504387387,0.31650417,88225.0,88216.0,0.01133581]
[1769504388004,0.31650417,88225.0,88215.0,0.01133594]
[1769504388921,0.31650417,88225.0,88213.0,0.01133619]
[1769504389262,0.31650417,88225.0,88217.0,0.01133568]
[1769504389610,0.31650417,88225.0,88216.0,0.01133581]
[1769504389868,0.31650417,88225.0,88215.0,0.01133594]
[1769504390071,0.31650417,88225.0,88216.0,0.01133581]
[1769504391733,0.00999999,88216.0,88203.0,0.02362978]
[1769504391937,0.31650417,88219.0,88205.0,0.01129346]
[1769504392191,0.31650417,88219.0,88209.0,0.01133671]
[1769504392395,0.31650417,88219.0,88205.0,0.01124634]
[1769504392555,0.31650417,88219.0,88210.0,0.01133658]
[1769504394075,0.31650417,88219.0,88209.0,0.01133671]
[1769504394686,0.31650417,88219.0,88210.0,0.06801934]
[1769504394888,0.02359654,88224.0,88213.0,0.01133619]
[1769504395570,0.02359654,88224.0,88212.0,0.01133632]
[1769504396199,0.02359654,88224.0,88211.0,0.01133645]
[1769504396363,0.02359654,88224.0,88212.0,0.01133632]
[1769504396567,0.02359654,88224.0,88213.0,0.01133619]
[1769504397701,0.02359654,88224.0,88212.0,0.01133632]
[1769504398489,0.02359654,88224.0,88211.0,0.01133645]
[1769504398714,0.31860329,88225.0,88212.0,0.01133632]
[1769504398918,0.31860329,88225.0,88211.0,0.01133645]
[1769504399093,0.31860329,88225.0,88213.0,0.01133619]
[1769504399307,0.31860329,88225.0,88211.0,0.01133645]
[1769504399510,0.31860329,88225.0,88212.0,0.01133632]
[1769504400310,0.31860329,88225.0,88208.0,0.02291784]
[1769504400479,0.31860329,88225.0,88210.0,0.01133658]
[1769504401076,0.31860329,88225.0,88211.0,0.01133645]
[1769504401292,0.31860329,88225.0,88209.0,0.03425455]
[1769504401501,0.31860329,88225.0,88209.0,0.02291784]
[1769504401699,0.31860329,88223.0,88208.0,0.01133684]
[1769504401909,0.31860329,88223.0,88209.0,0.01133671]
[1769504402114,0.31860329,88223.0,88208.0,0.01133684]
[1769504402527,0.3791643,88230.0,88206.0,0.0680225]
[1769504402528,0.31860329,88221.0,88206.0,0.01133709]
[1769504402688,0.31860329,88219.0,88207.0,0.01133696]
[1769504403032,0.31860329,88219.0,88205.0,0.01133722]
[1769504403229,0.31860329,88219.0,88203.0,0.02291784]
[1769504403873,0.31860329,88219.0,88203.0,0.03425532]
[1769504404076,0.31860329,88219.0,88201.0,0.01148663]
[1769504404326,0.34219953,88217.0,88202.0,0.01133761]
[1769504404502,0.34219953,88217.0,88203.0,0.01133748]
[1769504404696,0.34219953,88217.0,88202.0,0.01133761]
[1769504405117,0.34219953,88217.0,88203.0,0.01133748]
[1769504405526,0.34219953,88217.0,88202.0,0.01133761]
[1769504405803,0.3791643,88220.0,88201.0,0.01148663]
[1769504405804,0.02359624,88215.0,88201.0,0.0001489]
[1769504406061,0.34219953,88214.0,88201.0,0.0001489]
[1769504407265,0.34219953,88214.0,88201.0,0.01148663]
[1769504408853,0.34219953,88214.0,88201.0,0.0001489]
[1769504415488,0.34214292,88214.0,88201.0,0.0001489]
[1769504415964,0.01133799,88230.0,88192.0,0.33969515]
[1769504415965,0.34219953,88210.0,88192.0,0.01148779]
[1769504416229,0.34219953,88210.0,88192.0,0.0001489]
[1769504416230,0.02359624,88209.0,88192.0,0.0001489]
[1769504416389,0.37928774,88210.0,88189.0,0.02291784]
[1769504416390,0.37928774,88210.0,88191.0,0.01133902]
[1769504416391,0.02359624,88205.0,88191.0,0.01133902]
[1769504416614,0.31860329,88204.0,88191.0,0.01133902]
[1769504416750,0.31860329,88204.0,88192.0,0.01133889]
[1769504416953,0.31860329,88204.0,88191.0,0.01133902]
[1769504417146,0.31860329,88204.0,88193.0,0.01133876]
[1769504417346,0.31860329,88204.0,88190.0,0.01133915]
[1769504417567,0.34219953,88204.0,88191.0,0.01133902]
[1769504417789,0.34219953,88204.0,88190.0,0.01145034]
[1769504418186,0.31860329,88204.0,88190.0,0.01145034]
[1769504418391,0.02359624,88201.0,88187.0,0.0680372]
[1769504418593,0.34219953,88200.0,88188.0,0.01133941]
[1769504418821,0.34219953,88200.0,88186.0,0.05665205]
[1769504418971,0.34219953,88200.0,88186.0,0.04742585]
[1769504419171,0.34219953,88200.0,88188.0,0.01133941]
[1769504419785,0.34219953,88200.0,88187.0,0.01133953]
[1769504420086,0.34219953,88200.0,88186.0,0.01133966]
[1769504420250,0.34219953,88200.0,88187.0,0.01133953]
[1769504420461,0.34219953,88200.0,88188.0,0.01133941]
[1769504420664,0.34219953,88200.0,88186.0,0.01133966]
[1769504420903,0.34219953,88200.0,88185.0,0.01133979]
[1769504421252,0.34219953,88200.0,88185.0,0.00918102]
[1769504421456,0.34219953,88200.0,88182.0,0.01134018]
[1769504421656,0.0001271,88201.0,88180.0,0.06838367]
[1769504421657,0.31860329,88198.0,88180.0,0.06833898]
[1769504421860,0.02359624,88197.0,88182.0,0.01134018]
[1769504422270,0.31675602,88196.0,88182.0,0.01134018]
[1769504422490,0.0237401,88195.0,88184.0,0.01133992]
[1769504422927,0.0237401,88195.0,88185.0,0.01133979]
[1769504423121,0.0237401,88195.0,88184.0,0.01133992]
[1769504423323,0.0237401,88195.0,88185.0,0.01133979]
[1769504423650,0.0237401,88195.0,88184.0,0.01133992]
[1769504424068,0.0237401,88195.0,88185.0,0.01133979]
[1769504424924,0.0237401,88195.0,88184.0,0.01133992]
[1769504425287,0.01036583,88195.0,88185.0,0.01133979]
[1769504426090,0.01036583,88195.0,88177.0,0.0001671]
[1769504426300,0.01036583,88195.0,88184.0,0.01133992]
[1769504426916,0.01036583,88195.0,88183.0,0.01134005]
[1769504427328,0.01036583,88195.0,88184.0,0.01133992]
[1769504427561,0.01036583,88195.0,88182.0,0.01134018]
[1769504427969,0.01036583,88195.0,88183.0,0.01134005]
[1769504428891,0.01036583,88195.0,88184.0,0.01133992]
[1769504429093,0.01036583,88195.0,88185.0,0.01133979]
[1769504429434,0.01036583,88195.0,88163.0,0.2269623]
[1769504429435,0.0001271,88201.0,88191.0,0.01133902]
[1769504429672,0.0001271,88201.0,88190.0,0.01133915]
[1769504430099,0.0001271,88201.0,88192.0,0.01133889]
[1769504430314,0.0001271,88201.0,88191.0,0.01133902]
[1769504430522,0.0001271,88201.0,88189.0,0.30862146]
[1769504430772,0.0001271,88201.0,88190.0,0.01133915]
[1769504431973,0.0001271,88201.0,88191.0,0.00112866]
[1769504433279,0.0001271,88201.0,88190.0,0.00112866]
[1769504433487,0.0001271,88201.0,88190.0,0.01246781]
[1769504434965,0.01205901,88207.0,88190.0,0.01246781]
[1769504435108,0.3338148,88206.0,88190.0,0.01259491]
[1769504435323,0.3338148,88206.0,88190.0,0.06929064]
[1769504435524,0.01205901,88207.0,88190.0,0.06929064]
[1769504435525,0.01205901,88207.0,88192.0,0.01133889]
[1769504435737,0.01205901,88207.0,88197.0,0.01133825]
[1769504435948,0.3338148,88210.0,88196.0,0.01133838]
[1769504436150,0.3338148,88210.0,88195.0,0.01133851]
[1769504436353,0.3338148,88210.0,88194.0,0.34355026]
[1769504436759,0.3338148,88210.0,88192.0,0.01133889]
[1769504436962,0.02281668,88207.0,88190.0,0.01146625]
[1769504437193,0.3338148,88204.0,88190.0,0.0001271]
[1769504437394,0.35663148,88204.0,88190.0,0.0001271]
[1769504437724,0.35663148,88203.0,88190.0,0.0001271]
[1769504439504,0.35663148,88203.0,88190.0,0.01146625]
[1769504439707,0.35663148,88203.0,88191.0,0.01133902]
[1769504439919,0.02281668,88209.0,88192.0,0.01133889]
[1769504440121,0.35663148,88209.0,88192.0,0.01133889]
[1769504440385,0.35663148,88209.0,88193.0,0.01133876]
[1769504440796,0.35663148,88209.0,88195.0,0.01133851]
[1769504440971,0.35663148,88209.0,88192.0,0.01133889]
[1769504441179,0.35663148,88209.0,88193.0,0.01133876]
[1769504441396,0.35663148,88209.0,88186.0,0.01133966]
[1769504441607,0.02281668,88208.0,88191.0,0.01133902]
[1769504441816,0.3338148,88207.0,88191.0,0.01133902]
[1769504442015,0.3338148,88207.0,88189.0,0.30862146]
[1769504442246,0.3338148,88207.0,88189.0,0.31996074]
[1769504442457,0.35663148,88207.0,88189.0,0.30862146]
[1769504442594,0.02281668,88206.0,88189.0,0.31996074]
[1769504442824,0.35663148,88206.0,88189.0,0.31996074]
[1769504443028,0.35663148,88206.0,88187.0,0.02359017]
[1769504443029,0.3338148,88206.0,88187.0,0.02359017]
[1769504443238,0.02281668,88203.0,88186.0,0.01133966]
[1769504443439,0.35663148,88202.0,88184.0,0.01133992]
[1769504443666,0.35663148,88202.0,88183.0,0.31996151]
[1769504443869,0.35663148,88202.0,88184.0,0.01133992]
[1769504444325,0.35663148,88202.0,88179.0,0.0567025]
[1769504444326,0.02281668,88198.0,88177.0,0.32012938]
[1769504444532,0.37928774,88200.0,88178.0,0.09308609]
[1769504444533,0.02281668,88194.0,88178.0,0.09308609]
[1769504444732,0.02281668,88192.0,88178.0,0.09355369]
[1769504446873,0.3338148,88191.0,88178.0,0.0004676]
[1769504447076,0.02281668,88188.0,88177.0,0.0001671]
[1769504447275,0.35663148,88187.0,88177.0,0.0001671]
[1769504447731,0.02281668,88187.0,88177.0,0.0001671]
[1769504448382,0.0004676,88188.0,88177.0,0.0001671]
[1769504451047,0.35663148,88187.0,88177.0,0.0001671]
[1769504452861,0.0004676,88188.0,88130.0,0.39680158]
[1769504452862,0.02281668,88186.0,88165.0,0.0002]
[1769504453078,0.02281668,88186.0,88160.0,0.0459674]
[1769504453079,0.0004676,88188.0,88160.0,0.0048757]
[1769504453080,0.3338148,88174.0,88160.0,0.0048757]
[1769504453239,0.35663148,88172.0,88160.0,0.0048757]
[1769504453816,0.0004676,88188.0,88160.0,0.0048757]
[1769504453817,0.02281668,88171.0,88160.0,0.0048757]
[1769504454019,0.35663148,88169.0,88160.0,0.0048757]
[1769504458373,0.3338148,88169.0,88157.0,0.0001625]
[1769504458569,0.02268619,88166.0,88157.0,0.0001625]
[1769504458747,0.34288434,88166.0,88157.0,0.0001625]
[1769504458977,0.02268619,88165.0,88157.0,0.0001625]
[1769504459421,0.32019815,88171.0,88157.0,0.0001625]
[1769504459582,0.02268619,88170.0,88157.0,0.0001625]
[1769504459985,0.37928774,88170.0,88157.0,0.0001625]
[1769504460186,0.32019815,88165.0,88157.0,0.0001625]
[1769504460525,0.34288434,88164.0,88157.0,0.0001625]
[1769504460817,0.02268619,88164.0,88157.0,0.0001625]
[1769504461195,0.0004676,88188.0,88157.0,0.0001625]
[1769504461196,0.02268619,88186.0,88159.0,0.32056752]
[1769504461505,0.0004676,88188.0,88159.0,0.32056752]
[1769504461506,0.02268619,88180.0,88161.0,0.01134288]
[1769504461650,0.02268619,88180.0,88162.0,0.01134275]
[1769504461858,0.02268619,88180.0,88161.0,0.32056752]
[1769504462692,0.02268619,88179.0,88161.0,0.32056752]
[1769504463102,0.02268619,88178.0,88161.0,0.32056752]
[1769504463304,0.02268619,88178.0,88162.0,0.01134275]
[1769504463705,0.02268619,88178.0,88161.0,0.3319104]
[1769504464044,0.02268619,88178.0,88162.0,0.01134275]
[1769504464471,0.02268619,88178.0,88161.0,0.3319104]
[1769504464621,0.02268619,88178.0,88162.0,0.01134275]
[1769504465202,0.02268619,88178.0,88161.0,0.3319104]
[1769504465450,0.02268619,88178.0,88162.0,0.01134275]
[1769504465667,0.02268619,88178.0,88161.0,0.3319104]
[1769504465878,0.0004676,88188.0,88168.0,0.37955622]
[1769504465879,0.32019815,88185.0,88168.0,0.37955622]
[1769504466082,0.32019815,88185.0,88169.0,0.01134185]
[1769504466301,0.32019815,88185.0,88171.0,0.01134159]
[1769504466724,0.32019815,88185.0,88170.0,0.01134172]
[1769504466928,0.32019815,88185.0,88171.0,0.01134159]
[1769504467139,0.0004676,88188.0,88171.0,0.01134159]
[1769504467342,0.0004676,88188.0,88178.0,0.37955622]
[1769504467698,0.0004676,88188.0,88178.0,0.35682938]
[1769504467899,0.0004676,88188.0,88175.0,0.01134108]
[1769504468106,0.0004676,88188.0,88176.0,0.01134095]
[1769504468423,0.0004676,88188.0,88174.0,0.03474414]
[1769504469288,0.0004676,88188.0,88174.0,0.02340293]
[1769504469493,0.0004676,88188.0,88175.0,0.34397045]
[1769504470115,0.0004676,88188.0,88164.0,0.01134249]
[1769504470325,0.00999999,88175.0,88168.0,0.01134198]
[1769504470716,0.32019815,88182.0,88166.0,0.02340293]
[1769504471056,0.32019815,88182.0,88170.0,0.37955622]
[1769504471796,0.32019815,88182.0,88170.0,0.3795082]
[1769504474984,0.34288434,88182.0,88170.0,0.3795082]
[1769504477056,0.0004676,88188.0,88171.0,0.01134159]
[1769504477264,0.02315379,88188.0,88172.0,0.01134146]
[1769504477426,0.02315379,88188.0,88170.0,0.70007572]
[1769504477821,0.02268619,88187.0,88170.0,0.70007572]
[1769504478017,0.02268619,88187.0,88170.0,0.71141744]
[1769504478222,0.34288434,88187.0,88170.0,0.71141744]
[1769504478972,0.02268619,88186.0,88170.0,0.71141744]
[1769504479185,0.0001625,88191.0,88178.0,0.01134069]
[1769504479386,0.0001625,88191.0,88181.0,0.3795082]
[1769504480582,0.0001625,88191.0,88181.0,0.39084851]
[1769504481613,0.0001625,88191.0,88182.0,0.01134018]
[1769504482419,0.0001392,88191.0,88187.0,0.3795082]
[1769504482616,0.0001392,88191.0,88187.0,0.29542641]
[1769504482816,0.02421272,88203.0,88187.0,0.29542641]
[1769504482817,0.02421272,88203.0,88188.0,0.01133941]
[1769504483058,0.02421272,88203.0,88190.0,0.01133915]
[1769504483448,0.02421272,88203.0,88188.0,0.01133941]
[1769504483648,0.02421272,88203.0,88190.0,0.3795082]
[1769504484231,0.02406632,88203.0,88190.0,0.3795082]
[1769504485092,0.02406632,88203.0,88192.0,0.01133889]
[1769504485326,0.02406632,88203.0,88193.0,0.01133876]
[1769504485731,0.02406632,88203.0,88192.0,0.01133889]
[1769504485934,0.02406632,88203.0,88190.0,0.39084735]
[1769504487107,0.02406632,88203.0,88191.0,0.01133902]
[1769504487914,0.02406632,88203.0,88192.0,0.01133889]
[1769504488113,0.02406632,88203.0,88191.0,0.01133902]
[1769504488543,0.02406632,88203.0,88190.0,0.39084735]
[1769504488781,0.02406632,88203.0,88187.0,0.30453305]
[1769504488988,0.3795082,88210.0,88186.0,0.01133966]
[1769504488989,0.30295366,88200.0,88186.0,0.01133966]
[1769504489192,0.02453576,88199.0,88184.0,0.01133992]
[1769504489405,0.00999999,88186.0,88178.0,0.01180829]
[1769504489614,0.00999999,88186.0,88178.0,0.0004676]
[1769504489821,0.02453576,88192.0,88178.0,0.0004676]
[1769504490028,0.02453576,88190.0,88178.0,0.0004676]
[1769504490237,0.32748942,88190.0,88178.0,0.0004676]
[1769504490864,0.30295366,88188.0,88178.0,0.0004676]
[1769504491090,0.02678486,88185.0,88178.0,0.0004676]
[1769504491296,0.30295366,88182.0,88178.0,0.0004676]
[1769504491498,0.30295366,88181.0,88178.0,0.0004676]
[1769504491704,0.3795082,88190.0,88171.0,0.0003076]
[1769504491705,0.30295366,88179.0,88171.0,0.0003076]
[1769504491905,0.02678486,88176.0,88171.0,0.0003076]
[1769504492034,0.02678486,88174.0,88171.0,0.0003076]
[1769504493078,0.01678486,88174.0,88171.0,0.0003076]
[1769504493932,0.30295366,88173.0,88171.0,0.0003076]
[1769504494133,0.30295366,88173.0,88155.0,0.01777391]
[1769504494134,0.30295366,88173.0,88160.0,0.3795082]
[1769504494539,0.30295366,88173.0,88160.0,0.39085121]
[1769504494759,0.30295366,88173.0,88162.0,0.01134275]
[1769504494958,0.02295073,88176.0,88163.0,0.01134262]
[1769504495182,0.02295073,88176.0,88161.0,0.12782288]
[1769504495338,0.32590439,88175.0,88161.0,0.12782288]
[1769504496381,0.32590439,88175.0,88161.0,0.11648]
[1769504496698,0.32590439,88175.0,88162.0,0.01134275]
[1769504497308,0.30295366,88175.0,88163.0,0.01134262]
[1769504497510,0.32590439,88175.0,88163.0,0.01134262]
[1769504498231,0.32590439,88175.0,88162.0,0.01134275]
[1769504498372,0.02295073,88174.0,88161.0,0.11648]
[1769504498578,0.30295366,88171.0,88161.0,0.11648]
[1769504498782,0.32590439,88171.0,88161.0,0.11648]
[1769504500813,0.32590439,88171.0,88162.0,0.01134275]
[1769504501018,0.02295073,88171.0,88167.0,0.01134211]
[1769504501214,0.30295366,88176.0,88166.0,0.01134224]
[1769504501413,0.32590439,88176.0,88166.0,0.39085044]
[1769504501648,0.30295366,88176.0,88170.0,0.01134172]
[1769504501829,0.32590439,88176.0,88171.0,0.01134159]
[1769504502035,0.0004676,88179.0,88171.0,0.01134159]
[1769504502236,0.0004676,88179.0,88172.0,0.01134146]
[1769504504002,0.0004676,88179.0,88173.0,0.01134134]
[1769504504343,0.0004676,88179.0,88172.0,0.01134146]
[1769504506006,0.0004676,88179.0,88173.0,0.01134134]
[1769504506206,0.0004676,88179.0,88175.0,0.01134108]
[1769504506412,0.0004676,88179.0,88171.0,0.06804909]
[1769504506413,0.0004676,88179.0,88162.0,0.01134275]
[1769504506614,0.0004676,88179.0,88173.0,0.01134134]
[1769504506837,0.0004676,88179.0,88174.0,0.01134121]
[1769504507191,0.0004676,88179.0,88175.0,0.01134108]
[1769504507394,0.0004676,88179.0,88174.0,0.01134121]
[1769504507601,0.0004676,88179.0,88175.0,0.01134108]
[1769504507800,0.0002347,88206.0,88179.0,0.01134056]
[1769504507801,0.30295366,88205.0,88179.0,0.01134056]
[1769504508002,0.0002347,88206.0,88184.0,0.01133992]
[1769504508003,0.02295073,88202.0,88184.0,0.01133992]
[1769504508239,0.30295366,88199.0,88190.0,0.39084735]
[1769504508464,0.30295366,88205.0,88190.0,0.39084735]
[1769504508746,0.30295366,88205.0,88191.0,0.05669455]
[1769504508983,0.30295366,88205.0,88190.0,0.3795082]
[1769504508984,0.30295366,88205.0,88190.0,0.39084735]
[1769504510140,0.30295366,88205.0,88190.0,0.3795082]
[1769504510345,0.0002347,88206.0,88187.0,0.31587258]
[1769504510346,0.02295073,88204.0,88187.0,0.01133953]
[1769504510539,0.02295073,88202.0,88188.0,0.01133941]
[1769504510746,0.30295366,88199.0,88188.0,0.01133941]
[1769504510980,0.30295366,88199.0,88187.0,0.01133953]
[1769504511226,0.30295366,88199.0,88188.0,0.01133941]
[1769504511434,0.02295073,88200.0,88190.0,0.01133915]
[1769504511653,0.02246605,88200.0,88190.0,0.3795082]
[1769504512131,0.02246605,88200.0,88188.0,0.01133941]
[1769504512275,0.02246605,88200.0,88189.0,0.01133928]
[1769504512478,0.02246605,88200.0,88188.0,0.01133941]
[1769504512687,0.02246605,88200.0,88189.0,0.01133928]
[1769504514096,0.02246605,88200.0,88188.0,0.01133941]
[1769504514298,0.02246605,88200.0,88190.0,0.01133915]
[1769504515126,0.02246605,88200.0,88189.0,0.01133928]
[1769504515410,0.02246605,88200.0,88190.0,0.01133915]
[1769504516218,0.32554159,88200.0,88187.0,0.16981576]
[1769504516419,0.32554159,88200.0,88187.0,0.18115529]
[1769504517019,0.32554159,88200.0,88187.0,0.01133953]
[1769504517852,0.32554159,88200.0,88188.0,0.01133941]
[1769504518026,0.32554159,88200.0,88187.0,0.01133953]
[1769504518227,0.32554159,88200.0,88188.0,0.01133941]
[1769504518427,0.32554159,88200.0,88187.0,0.01133953]
[1769504518672,0.32554159,88200.0,88188.0,0.01133941]
[1769504518863,0.32554159,88200.0,88187.0,0.01133953]
[1769504519286,0.32554159,88200.0,88188.0,0.01133941]
[1769504519676,0.32554159,88200.0,88187.0,0.01133953]
[1769504520405,0.32554159,88200.0,88189.0,0.01133928]
[1769504521155,0.32554159,88200.0,88186.0,0.18115542]
[1769504521356,0.3795082,88200.0,88185.0,0.16981576]
[1769504521598,0.3795082,88200.0,88179.0,0.01148045]
[1769504521599,0.0240114,88196.0,88181.0,0.01134031]
[1769504521794,0.30307554,88193.0,88179.0,0.00013989]
[1769504522033,0.30307554,88191.0,88179.0,0.00013989]
[1769504522684,0.0240114,88192.0,88179.0,0.00013989]
[1769504522685,0.0240114,88188.0,88179.0,0.00013989]
[1769504522835,0.32708694,88186.0,88179.0,0.00013989]
[1769504523039,0.0240114,88185.0,88179.0,0.00013989]
[1769504524867,0.30307554,88185.0,88179.0,0.00013989]
[1769504525077,0.0240114,88182.0,88179.0,0.00013989]
[1769504525594,0.0240114,88182.0,88170.0,0.3795082]
[1769504525595,0.30307554,88180.0,88167.0,0.01134211]
[1769504525765,0.30307554,88180.0,88168.0,0.06805132]
[1769504525766,0.02415129,88179.0,88168.0,0.06805132]
[1769504525966,0.0240114,88179.0,88170.0,0.01134172]
[1769504526553,0.0240114,88189.0,88177.0,0.01134082]
[1769504526831,0.0240114,88189.0,88175.0,0.01134108]
[1769504526832,0.30307554,88187.0,88180.0,0.0003076]
[1769504527036,0.30307554,88185.0,88164.0,0.01134249]
[1769504527196,0.0240114,88182.0,88169.0,0.01134185]
[1769504527396,0.0240114,88178.0,88167.0,0.01134211]
[1769504527611,0.32708694,88177.0,88166.0,0.01134224]
[1769504527810,0.30307554,88177.0,88166.0,0.01134224]
[1769504528016,0.0240114,88176.0,88168.0,0.01134198]
[1769504528212,0.0240114,88176.0,88167.0,0.01134211]
[1769504528422,0.0240114,88176.0,88168.0,0.01134198]
[1769504529071,0.0240114,88176.0,88169.0,0.01134185]
[1769504529269,0.0240114,88176.0,88168.0,0.01134198]
[1769504529429,0.11648,88198.0,88170.0,0.01134172]
[1769504529631,0.11648,88198.0,88173.0,0.01134134]
[1769504529632,0.0240114,88194.0,88173.0,0.01134134]
[1769504529857,0.30307554,88191.0,88174.0,0.01134121]
[1769504530022,0.30307554,88189.0,88174.0,0.01134121]
[1769504530225,0.0240114,88186.0,88173.0,0.01134134]
[1769504530465,0.32708694,88186.0,88175.0,0.01134108]
[1769504530803,0.32708694,88186.0,88173.0,0.01134134]
[1769504530939,0.32708694,88186.0,88171.0,0.01134159]
[1769504531143,0.32708694,88186.0,88172.0,0.01134146]
[1769504531343,0.32708694,88186.0,88173.0,0.01134134]
[1769504532291,0.32708694,88186.0,88172.0,0.01134146]
[1769504533291,0.32708694,88186.0,88173.0,0.01134134]
[1769504533753,0.32708694,88186.0,88172.0,0.01134146]
[1769504534573,0.32708694,88186.0,88173.0,0.01134134]
[1769504534786,0.32708694,88186.0,88172.0,0.01134146]
[1769504536283,0.32708694,88186.0,88174.0,0.01134121]
[1769504536861,0.32708694,88186.0,88173.0,0.01134134]
[1769504537265,0.32708694,88186.0,88174.0,0.01134121]
[1769504538081,0.32708694,88186.0,88173.0,0.01134134]
[1769504538283,0.32708694,88186.0,88171.0,0.01134159]
[1769504538655,0.32708694,88186.0,88167.0,0.31844672]
[1769504538867,0.37950878,88190.0,88167.0,0.02725505]
[1769504538868,0.32708694,88183.0,88167.0,0.02725505]
[1769504539039,0.11648,88198.0,88165.0,0.0567118]
[1769504539040,0.30307554,88179.0,88166.0,0.01134224]
[1769504539247,0.30307554,88179.0,88165.0,0.01134236]
[1769504539248,0.32708694,88178.0,88165.0,0.01134236]
[1769504539591,0.32708694,88178.0,88166.0,0.01134224]
[1769504540004,0.32708694,88178.0,88168.0,0.01134198]
[1769504540209,0.32708694,88178.0,88167.0,0.01134211]
[1769504540403,0.32708694,88178.0,88165.0,0.06805381]
[1769504540404,0.32708694,88178.0,88165.0,0.01134236]
[1769504540839,0.32708694,88178.0,88167.0,0.01134211]
[1769504541239,0.32708694,88178.0,88166.0,0.01134224]
[1769504541456,0.32708694,88178.0,88167.0,0.01134211]
[1769504541733,0.32708694,88178.0,88166.0,0.01134224]
[1769504541914,0.32708694,88178.0,88165.0,0.01134236]
[1769504542222,0.32708694,88178.0,88166.0,0.01134224]
[1769504543499,0.30307554,88178.0,88164.0,0.0004676]
[1769504543706,0.32006397,88176.0,88164.0,0.01181009]
[1769504544360,0.32006397,88176.0,88164.0,0.0004676]
[1769504544579,0.32006397,88176.0,88164.0,0.01181009]
[1769504544798,0.32006397,88176.0,88165.0,0.01134236]
[1769504545011,0.29740292,88176.0,88165.0,0.01134236]
[1769504545401,0.29740292,88176.0,88166.0,0.01134224]
[1769504546031,0.37950878,88180.0,88166.0,0.01134224]
[1769504546461,0.37950878,88180.0,88168.0,0.01134198]
[1769504546660,0.28071376,88181.0,88167.0,0.01134211]
[1769504546879,0.28071376,88181.0,88170.0,0.01134172]
[1769504547650,0.28071376,88181.0,88172.0,0.01134146]
[1769504548037,0.28071376,88181.0,88171.0,0.05670798]
[1769504548244,0.28071376,88181.0,88174.0,0.01134121]
[1769504549058,0.28071376,88181.0,88173.0,0.01134134]
[1769504550060,0.28071376,88181.0,88171.0,0.01134159]
[1769504550480,0.28071376,88181.0,88172.0,0.01134146]
[1769504550683,0.28071376,88181.0,88173.0,0.01134134]
[1769504550894,0.28071376,88181.0,88172.0,0.01134146]
[1769504551603,0.28071376,88181.0,88173.0,0.01134134]
[1769504552004,0.28071376,88181.0,88172.0,0.01134146]
[1769504553331,0.28071376,88181.0,88173.0,0.01134134]
[1769504553533,0.28071376,88181.0,88174.0,0.01134121]
[1769504553744,0.28071376,88181.0,88173.0,0.01134134]
[1769504553970,0.28071376,88181.0,88172.0,0.01134146]
[1769504554683,0.28071376,88181.0,88169.0,0.05670923]
[1769504554826,0.28071376,88181.0,88164.0,0.0006372]
[1769504555031,0.3041264,88178.0,88164.0,0.0006372]
[1769504555861,0.3041264,88178.0,88164.0,0.01197969]
[1769504556084,0.3041264,88178.0,88165.0,0.01134236]
[1769504556258,0.3041264,88178.0,88164.0,0.01197969]
[1769504556684,0.02341264,88177.0,88164.0,0.0006372]
[1769504556887,0.3041264,88176.0,88164.0,0.01197969]
[1769504557291,0.3041264,88176.0,88164.0,0.0006372]
[1769504560123,0.37950878,88180.0,88160.0,0.05671495]
[1769504560124,0.28071376,88174.0,88160.0,0.01134301]
[1769504560372,0.304594,88174.0,88160.0,0.01134301]
[1769504560775,0.304594,88174.0,88159.0,0.01134314]
[1769504561712,0.304594,88174.0,88160.0,0.01134301]
[1769504561985,0.304594,88174.0,88159.0,0.01134314]
[1769504562682,0.304594,88174.0,88161.0,0.01134288]
[1769504563103,0.304594,88174.0,88159.0,0.01134314]
[1769504563309,0.304594,88174.0,88160.0,0.01134301]
[1769504564251,0.304594,88174.0,88159.0,0.01134314]
[1769504564687,0.304594,88174.0,88158.0,0.03587021]
[1769504565130,0.304594,88174.0,88158.0,0.02452694]
[1769504565948,0.304594,88174.0,88149.0,0.01134442]
[1769504565949,0.28071376,88168.0,88149.0,0.01134442]
[1769504566145,0.37950878,88170.0,88147.0,0.03587162]
[1769504566146,0.02341264,88165.0,88148.0,0.07035409]
[1769504566346,0.28071376,88162.0,88148.0,0.04761966]
[1769504566554,0.28071376,88162.0,88148.0,0.0248851]
[1769504566555,0.3041264,88162.0,88148.0,0.0248851]
[1769504566938,0.3041264,88162.0,88148.0,0.00213918]
[1769504567147,0.3041264,88162.0,88146.0,0.01134481]
[1769504567345,0.3041264,88162.0,88147.0,0.01134468]
[1769504567547,0.3041264,88162.0,88144.0,0.05667953]
[1769504567851,0.02341264,88161.0,88142.0,0.29758274]
[1769504568050,0.28071376,88159.0,88150.0,0.37950878]
[1769504568642,0.28071376,88159.0,88142.0,0.29758274]
[1769504568643,0.28071376,88159.0,88143.0,0.0001771]
[1769504568853,0.0004676,88174.0,88143.0,0.0001771]
[1769504568854,0.02341264,88156.0,88143.0,0.0001771]
[1769504569131,0.02341264,88156.0,88138.0,0.01134584]
[1769504569132,0.28071376,88151.0,88138.0,0.01134584]
[1769504569331,0.3041264,88151.0,88141.0,0.01134545]
[1769504569544,0.28071376,88151.0,88142.0,0.01134532]
[1769504569740,0.28071376,88151.0,88140.0,0.39085436]
[1769504570002,0.28071376,88151.0,88142.0,0.01134532]
[1769504570204,0.3041264,88157.0,88142.0,0.01134532]
[1769504570379,0.3041264,88157.0,88145.0,0.01134494]
[1769504571474,0.3041264,88157.0,88144.0,0.01134507]
[1769504571475,0.28071376,88157.0,88144.0,0.01134507]
[1769504571975,0.3041264,88162.0,88144.0,0.01134507]
[1769504572181,0.3041264,88162.0,88146.0,0.01134481]
[1769504573005,0.3041264,88162.0,88147.0,0.01134468]
[1769504573410,0.3041264,88162.0,88148.0,0.01134455]
[1769504573608,0.3041264,88162.0,88147.0,0.01134468]
[1769504573811,0.3041264,88162.0,88148.0,0.01134455]
[1769504574017,0.3041264,88162.0,88147.0,0.01134468]
[1769504574222,0.3041264,88162.0,88146.0,0.01134481]
[1769504574762,0.3041264,88162.0,88147.0,0.01134468]
[1769504575252,0.3041264,88162.0,88146.0,0.01134481]
[1769504575443,0.3041264,88162.0,88147.0,0.01134468]
[1769504575644,0.3041264,88162.0,88148.0,0.01134455]
[1769504575817,0.3041264,88162.0,88147.0,0.01134468]
[1769504576756,0.3041264,88162.0,88148.0,0.01134455]